bitfinex/quotes_ETHUSD_20250925
["timestamp","ask_amount","ask_price","bid_price","bid_amount"]
[1758766516978,7.29035273,4097.7,4097.6,6.275]
[1758766517512,5.44039339,4097.7,4097.6,4.242]
[1758766517823,13.05514735,4097.7,4097.6,4.242]
[1758766517992,13.07304735,4097.7,4097.6,4.242]
[1758766518316,12.72744735,4097.7,4097.6,6.275]
[1758766518833,3.0,4097.7,4097.6,6.275]
[1758766518975,5.44039339,4097.7,4097.6,6.275]
[1758766519381,5.44039339,4097.7,4097.6,20.775]
[1758766519878,3.0,4097.7,4097.6,14.502]
[1758766520180,3.0,4097.7,4097.6,20.775]
[1758766520382,5.44039339,4097.7,4097.6,14.502]
[1758766520678,3.0,4097.7,4097.6,20.775]
[1758766521284,5.44039339,4097.7,4097.6,20.775]
[1758766521500,5.43378689,4097.7,4097.6,20.775]
[1758766521816,5.43378689,4097.7,4097.6,14.502]
[1758766522016,5.43378689,4097.7,4097.6,20.775]
[1758766522815,5.43378689,4097.7,4097.6,14.502]
[1758766523020,5.43378689,4097.7,4097.6,20.775]
[1758766524979,5.77938689,4097.7,4097.6,6.275]
[1758766525416,6.57138689,4097.7,4097.6,6.275]
[1758766526582,6.57138689,4097.7,4097.6,0.002]
[1758766526785,6.57138689,4097.7,4097.6,6.275]
[1758766528223,6.57138689,4097.7,4097.6,4.241]
[1758766528385,6.22578689,4097.7,4097.6,0.002]
[1758766528598,6.22578689,4097.7,4097.1,0.022]
[1758766528599,0.792,4097.4,4097.1,1e-08]
[1758766528833,13.51974516,4097.2,4097.1,1e-08]
[1758766529233,13.51974516,4097.2,4097.1,4.23900001]
[1758766529234,13.86534516,4097.2,4097.1,4.23900001]
[1758766532840,15.02127047,4097.2,4097.1,4.23900001]
[1758766533816,14.67567047,4097.2,4097.1,4.23900001]
[1758766534203,14.67567047,4097.2,4097.1,1e-08]
[1758766534526,15.02127047,4097.2,4097.1,4.23900001]
[1758766535120,14.69357047,4097.2,4097.1,4.23900001]
[1758766536114,14.67567047,4097.2,4097.1,4.23900001]
[1758766536357,14.67567047,4097.2,4097.1,1e-08]
[1758766536556,14.67567047,4097.2,4097.1,4.23900001]
[1758766539548,14.67567047,4097.2,4097.1,1e-08]
[1758766539745,14.67567047,4097.2,4097.1,6.27200001]
[1758766539951,14.67567047,4097.2,4097.1,1e-08]
[1758766540126,14.67567047,4097.2,4097.1,6.27200001]
[1758766540823,14.67567047,4097.2,4097.1,1e-08]
[1758766541023,14.67567047,4097.2,4097.1,6.27200001]
[1758766541244,6.2326912,4097.2,4097.1,6.27200001]
[1758766541465,14.67567047,4097.2,4097.1,6.27200001]
[1758766545271,14.67567047,4097.2,4097.1,1e-08]
[1758766545470,14.67567047,4097.2,4097.1,6.27200001]
[1758766545786,14.67567047,4097.2,4097.1,4.23700001]
[1758766545787,15.02127047,4097.2,4097.1,4.23700001]
[1758766546160,14.67567047,4097.2,4097.1,4.23700001]
[1758766547166,14.67567047,4097.2,4097.1,1e-08]
[1758766547369,14.67567047,4097.2,4097.1,4.23700001]
[1758766547559,14.67567047,4097.2,4097.1,6.27100001]
[1758766549807,6.2326912,4097.2,4097.1,6.93670001]
[1758766550697,6.2326912,4097.2,4097.1,6.50510001]
[1758766550871,6.2326912,4097.2,4097.1,0.23410001]
[1758766551098,6.2326912,4097.2,4097.1,6.27100001]
[1758766551580,6.2326912,4097.2,4097.1,1e-08]
[1758766551780,6.2326912,4097.2,4097.1,6.27000001]
[1758766554007,6.2336912,4097.2,4097.1,1e-08]
[1758766554521,6.2336912,4097.2,4097.1,6.27000001]
[1758766554715,6.2336912,4097.2,4097.1,1e-08]
[1758766554883,5.4416912,4097.2,4097.1,6.93570001]
[1758766555283,0.001,4097.2,4097.1,7.46859893]
[1758766555795,0.001,4097.2,4097.1,15.69959893]
[1758766555995,0.001,4097.2,4097.1,19.93459893]
[1758766556192,0.001,4097.2,4097.1,21.96859893]
[1758766556395,5.5632912,4097.2,4097.1,21.43470001]
[1758766556576,5.5632912,4097.2,4097.1,15.16570001]
[1758766556782,5.5632912,4097.2,4097.1,21.43470001]
[1758766557883,3.1226,4097.2,4097.1,21.43470001]
[1758766560093,3.001,4097.2,4097.1,15.16570001]
[1758766560287,3.001,4097.2,4097.1,22.95027001]
[1758766563128,3.001,4097.2,4097.1,25.39102078]
[1758766563331,3.001,4097.2,4097.1,22.95027001]
[1758766563532,3.001,4097.2,4097.1,25.39102078]
[1758766563889,3.001,4097.2,4097.1,22.95027001]
[1758766564492,3.001,4097.2,4097.1,20.91527001]
[1758766564690,3.001,4097.2,4097.1,22.94927001]
[1758766568244,3.001,4097.2,4097.1,16.01657001]
[1758766570841,3.001,4097.2,4097.1,22.96937001]
[1758766571038,3.001,4097.2,4097.1,16.45457001]
[1758766571245,3.001,4097.2,4095.1,0.02]
[1758766571246,3.792,4097.1,4095.1,0.02]
[1758766571550,14.00640282,4095.3,4095.2,6.265]
[1758766571715,2.44188318,4095.2,4095.1,0.02]
[1758766572049,2.442241,4094.6,4094.5,2.034]
[1758766572235,13.88522027,4094.6,4094.5,6.265]
[1758766572439,5.442241,4094.6,4094.5,6.265]
[1758766573214,5.769941,4094.6,4094.5,6.265]
[1758766573458,5.787841,4094.6,4094.5,6.265]
[1758766573682,5.442241,4094.6,4094.5,6.265]
[1758766574160,3.0,4094.6,4094.5,6.9526]
[1758766575132,5.442241,4094.6,4094.5,0.6876]
[1758766575334,5.442241,4094.6,4094.5,6.5032]
[1758766575535,3.0,4094.6,4094.5,6.5032]
[1758766575746,3.0,4094.6,4094.5,6.9526]
[1758766576038,3.0,4094.6,4093.8,14.5]
[1758766576267,0.1216,4094.4,4094.2,6.9526]
[1758766576442,0.1216,4094.4,4094.2,6.265]
[1758766576631,3.1216,4094.4,4093.8,14.5]
[1758766576836,2.4424796,4094.2,4093.8,14.5]
[1758766577037,0.49848617,4095.3,4094.1,6.285]
[1758766577269,2.44236453,4094.4,4094.2,0.2382]
[1758766577440,0.13083862,4095.1,4094.3,4.4692]
[1758766577641,2.44206232,4094.9,4094.4,0.2626236]
[1758766577967,2.44200147,4095.1,4094.5,4.9186]
[1758766578271,2.442241,4094.6,4094.5,4.9186]
[1758766578480,2.44219179,4094.7,4094.5,4.9186]
[1758766578691,2.44200244,4095.0,4094.6,0.2382]
[1758766578841,2.44218135,4094.7,4094.6,0.2382]
[1758766579165,2.44211111,4094.9,4094.6,4.4692]
[1758766579371,2.44200244,4095.0,4094.6,4.4692]
[1758766579547,2.44218135,4094.7,4094.6,4.4692]
[1758766579742,2.44217131,4094.8,4094.6,4.4692]
[1758766580368,3.0,4095.0,4094.6,4.4692]
[1758766580582,3.23388497,4095.2,4094.7,0.6876]
[1758766580583,3.0,4095.1,4094.7,0.6876]
[1758766580878,3.2344796,4094.2,4094.1,0.02]
[1758766581075,6.2344796,4094.2,4094.1,2.22]
[1758766581295,6.5800796,4094.2,4094.1,0.02]
[1758766581495,7.51931958,4094.2,4094.1,0.02]
[1758766581797,7.51931958,4094.2,4094.1,4.251]
[1758766581959,7.51931958,4094.2,4093.1,14.52]
[1758766581960,7.17371958,4094.2,4093.1,0.02]
[1758766582161,6.23507632,4093.2,4093.1,0.02]
[1758766582468,6.23507632,4093.2,4093.1,0.129]
[1758766582682,6.58067632,4093.2,4093.1,0.129]
[1758766582885,6.58067632,4093.2,4093.1,0.02]
[1758766583258,6.58067632,4093.2,4093.1,4.251]
[1758766583595,7.48304351,4093.2,4093.1,4.251]
[1758766583962,7.48304351,4093.2,4093.1,0.02]
[1758766584495,7.48304351,4093.2,4093.1,0.288]
[1758766584696,7.97811605,4093.2,4093.1,1e-08]
[1758766585994,7.97811605,4093.2,4093.1,4.23100001]
[1758766585995,7.63251605,4093.2,4093.1,4.23100001]
[1758766586491,7.97811605,4093.2,4093.1,4.23200001]
[1758766586690,7.97811605,4093.2,4093.1,1e-08]
[1758766586994,7.96021605,4093.2,4093.1,4.23200001]
[1758766587184,7.63251605,4093.2,4093.1,4.23200001]
[1758766587660,3.34544351,4093.2,4093.1,1e-08]
[1758766587860,4.46514351,4093.2,4093.1,1e-08]
[1758766588060,4.48304351,4093.2,4093.1,1e-08]
[1758766588288,4.96030733,4093.2,4093.1,1e-08]
[1758766588592,5.18965801,4093.2,4093.1,1e-08]
[1758766590698,5.51691267,4093.2,4093.1,1e-08]
[1758766590901,8.51691267,4093.2,4093.1,1e-08]
[1758766591194,8.84717192,4093.2,4093.1,1e-08]
[1758766591399,10.31317192,4093.2,4093.1,1e-08]
[1758766591818,10.31317192,4093.2,4093.1,0.00200001]
[1758766591967,8.51691267,4093.2,4093.1,0.00200001]
[1758766592565,31.22133088,4093.2,4093.1,0.00200001]
[1758766592765,30.89407622,4093.2,4093.1,0.00200001]
[1758766593101,7.05205801,4093.2,4093.1,0.00200001]
[1758766593400,4.29025801,4093.2,4093.1,0.00200001]
[1758766593602,0.7066145,4093.2,4093.1,0.24020001]
[1758766593773,2.44307602,4093.3,4093.1,0.68960001]
[1758766593973,2.44307632,4093.2,4093.1,0.00200001]
[1758766594307,3.23507632,4093.2,4093.1,0.00200001]
[1758766594477,4.05300026,4093.2,4093.1,0.00200001]
[1758766594799,5.36868374,4093.2,4093.1,0.00200001]
[1758766595674,4.69582908,4093.2,4093.1,0.00200001]
[1758766596180,3.90382908,4093.2,4093.1,0.00200001]
[1758766596385,4.69582908,4093.2,4093.1,0.00200001]
[1758766596695,3.90382908,4093.2,4093.1,0.68960001]
[1758766596905,3.90382908,4093.2,4093.1,0.00200001]
[1758766597507,7.69582908,4093.2,4093.1,0.00200001]
[1758766598217,8.02352908,4093.2,4093.1,0.00200001]
[1758766598378,7.69582908,4093.2,4093.1,0.00200001]
[1758766599498,7.69582908,4093.2,4093.1,0.68960001]
[1758766600220,4.28266928,4093.2,4093.1,0.68960001]
[1758766600522,6.7257456,4093.2,4093.1,0.68960001]
[1758766600823,4.28266928,4093.2,4093.1,0.68960001]
[1758766600984,3.23507632,4093.2,4093.1,0.68960001]
[1758766601189,0.27016092,4094.0,4093.1,0.68960001]
[1758766601413,2.44267755,4093.9,4093.2,0.96260326]
[1758766601584,2.44295059,4093.5,4093.3,4.8082]
[1758766601785,2.44289727,4093.5,4093.4,4.9196]
[1758766602021,0.47471536,4094.0,4093.1,0.00200001]
[1758766602022,2.44307632,4093.2,4093.1,0.00200001]
[1758766602323,6.23507632,4093.2,4093.1,0.00200001]
[1758766602685,29.78168176,4093.2,4093.1,0.00200001]
[1758766603017,30.12728176,4093.2,4093.1,0.00200001]
[1758766603392,7.07726355,4093.2,4093.1,0.00200001]
[1758766603593,6.73005101,4093.2,4093.1,0.00200001]
[1758766606909,6.73005101,4093.2,4093.1,0.67920001]
[1758766607293,6.23507632,4093.2,4093.1,0.67920001]
[1758766607484,6.23507632,4093.2,4093.1,0.00200001]
[1758766607880,7.10288369,4093.2,4093.1,0.00200001]
[1758766608086,7.58533356,4093.2,4093.1,0.00200001]
[1758766608418,7.10288369,4093.2,4093.1,0.67920001]
[1758766608618,13.54420754,4093.2,4093.1,0.67920001]
[1758766608783,6.23507632,4093.2,4093.1,0.67920001]
[1758766608984,7.30913122,4093.4,4093.1,0.67920001]
[1758766609223,2.44307632,4093.2,4093.1,0.67920001]
[1758766609402,2.44307632,4093.2,4093.1,0.00200001]
[1758766609601,5.44302287,4093.3,4093.1,0.00200001]
[1758766609939,2.44307632,4093.2,4093.1,0.00200001]
[1758766610098,3.0,4093.3,4093.1,0.24160001]
[1758766610422,5.44301663,4093.3,4093.2,0.4376]
[1758766610589,2.44301663,4093.3,4093.2,0.6772]
[1758766611236,2.44301663,4093.3,4093.2,6.9452]
[1758766613128,3.0,4093.4,4093.2,6.9452]
[1758766613315,0.792,4093.9,4093.3,0.6772]
[1758766613522,0.20455444,4094.0,4093.3,0.4376]
[1758766613817,2.44289727,4093.5,4093.4,0.2396]
[1758766614044,2.44289727,4093.5,4093.4,0.6772]
[1758766615828,3.20772811,4094.0,4093.4,0.6772]
[1758766616013,2.4422797,4094.6,4093.5,0.6772]
[1758766616217,0.73493476,4094.8,4093.6,0.70162837]
[1758766616459,2.44260613,4094.0,4093.7,0.6772]
[1758766616663,0.001,4095.1,4093.8,4.4462]
[1758766616664,2.44247494,4094.3,4093.8,4.4462]
[1758766616846,2.44206207,4094.9,4093.9,4.9082]
[1758766617047,2.44259892,4094.0,4093.9,0.6772]
[1758766617419,2.44259892,4094.0,4093.9,6.4922]
[1758766617619,2.44259892,4094.0,4093.9,4.9082]
[1758766617818,2.44259892,4094.0,4093.9,6.9442]
[1758766619326,2.44206207,4094.9,4093.9,6.9442]
[1758766619532,2.44258905,4094.1,4093.9,6.9442]
[1758766619778,2.44258905,4094.1,4094.0,0.2396]
[1758766619970,2.44258905,4094.1,4094.0,0.6772]
[1758766620859,3.0,4094.2,4094.0,0.6772]
[1758766620860,0.792,4094.7,4094.0,6.9442]
[1758766621081,2.4424796,4094.2,4094.1,0.2322]
[1758766621235,3.0,4095.0,4094.1,0.7005]
[1758766621578,0.1216,4094.1,4094.0,6.267]
[1758766621783,0.1216,4094.1,4093.3,17.06460812]
[1758766622085,0.1216,4094.1,4093.4,2.40716081]
[1758766622370,0.1216,4093.8,4093.5,6.266]
[1758766622667,2.44277792,4093.7,4093.6,0.7005]
[1758766622826,3.0179,4094.8,4093.6,0.7005]
[1758766622827,5.4425919,4094.1,4093.6,6.9665]
[1758766623030,2.44276063,4093.8,4093.6,6.266]
[1758766623261,2.44271825,4093.8,4093.7,0.7005]
[1758766623666,2.44271825,4093.8,4092.6,2.56503053]
[1758766623667,2.56437792,4093.7,4091.3,0.73486455]
[1758766623841,2.44367332,4092.2,4091.3,0.73486455]
[1758766624030,28.92549786,4092.2,4092.1,1e-08]
[1758766624235,30.45301326,4092.2,4092.1,1e-08]
[1758766624437,7.0520726,4092.2,4092.1,1e-08]
[1758766624634,7.3976726,4092.2,4092.1,1e-08]
[1758766624866,7.0520726,4092.2,4092.1,1e-08]
[1758766625064,5.44367332,4092.2,4092.1,1e-08]
[1758766625648,3.0,4092.2,4092.1,1e-08]
[1758766625852,5.44367332,4092.2,4092.1,1e-08]
[1758766626366,3.0,4092.2,4092.1,0.70050001]
[1758766627813,0.50102911,4093.7,4092.1,0.70050001]
[1758766627814,0.792,4093.5,4092.1,0.70050001]
[1758766628011,2.44321804,4093.0,4092.2,2.036]
[1758766628158,2.44325746,4092.9,4092.2,2.2682]
[1758766628686,3.0,4093.4,4092.2,2.2682]
[1758766628861,2.4433051,4092.9,4092.2,2.2682]
[1758766629062,3.91367332,4092.2,4091.1,1e-08]
[1758766629304,6.23686822,4090.2,4088.6,0.4683]
[1758766629604,6.23698777,4090.0,4089.9,1e-08]
[1758766629804,0.73436612,4090.1,4088.5,5.03392562]
[1758766630017,4.23554525,4091.2,4088.6,0.02445824]
[1758766630018,5.44466514,4090.6,4088.6,0.02445824]
[1758766630304,3.0,4089.2,4088.5,2.38612562]
[1758766630505,0.792,4088.9,4088.5,2.15392562]
[1758766630801,2.44549267,4089.2,4088.5,2.15392562]
[1758766631006,3.792,4088.6,4088.1,0.02]
[1758766631203,26.48182454,4088.2,4088.1,0.02]
[1758766631501,26.48182454,4088.2,4088.1,0.2522]
[1758766631502,3.0,4088.2,4088.1,0.2522]
[1758766631704,3.0,4088.2,4088.1,0.7205]
[1758766632003,3.0,4088.2,4088.1,0.02]
[1758766632168,3.792,4088.2,4088.1,0.02]
[1758766632368,0.792,4088.1,4087.1,0.02]
[1758766632603,0.792,4088.1,4087.1,0.4592]
[1758766632604,3.0,4087.8,4087.1,0.4592]
[1758766633112,0.792,4087.7,4087.1,4.418]
[1758766633306,0.73603828,4088.4,4087.2,0.6849]
[1758766633491,0.57707204,4089.2,4087.3,1.39889]
[1758766633492,0.792,4089.1,4087.3,1.39889]
[1758766633693,0.1216,4087.8,4087.4,7.1279]
[1758766633902,1.29094814,4089.1,4088.3,2.44599399]
[1758766634108,2.82841403,4090.3,4087.5,21.65136483]
[1758766634109,22.68982454,4089.9,4088.4,7.1269]
[1758766634409,22.68982454,4089.9,4087.3,3.16057917]
[1758766634410,22.68982454,4089.9,4088.5,7.1269]
[1758766634605,23.17873529,4089.9,4088.6,0.6849]
[1758766634804,22.68982454,4089.2,4088.7,14.5]
[1758766635014,0.8099,4089.8,4088.8,2.037]
[1758766635207,0.792,4089.4,4088.8,6.445]
[1758766635394,0.73579637,4089.8,4088.8,6.445]
[1758766635582,0.73579637,4089.8,4089.0,2.44558571]
[1758766635803,0.73579637,4089.8,4088.9,15.85385645]
[1758766635804,0.73579637,4089.8,4089.1,0.6849]
[1758766636005,0.73579637,4089.8,4088.9,15.1445]
[1758766636006,0.812,4089.9,4088.9,14.5]
[1758766636376,0.812,4089.9,4089.0,6.448]
[1758766636686,3.812,4089.9,4089.0,6.448]
[1758766636881,3.812,4089.9,4089.0,8.89357493]
[1758766637087,0.812,4089.9,4089.0,6.448]
[1758766637285,6.25705724,4089.9,4088.8,14.5]
[1758766637497,2.44529623,4089.5,4088.4,0.2457]
[1758766637818,0.792,4089.1,4088.4,0.2457]
[1758766638027,0.792,4088.9,4088.0,0.2457]
[1758766638179,0.792,4088.4,4088.0,6.444]
[1758766638533,0.792,4088.4,4088.1,0.6849]
[1758766638734,0.792,4088.6,4088.1,0.2457]
[1758766638937,0.792,4088.4,4087.1,0.02]
[1758766639233,0.792,4088.4,4087.2,7.1289]
[1758766639435,0.792,4088.4,4087.3,14.5]
[1758766639586,3.23799878,4088.4,4087.3,17.63149584]
[1758766639787,3.23799878,4088.4,4087.4,2.44653507]
[1758766640137,0.792,4088.4,4087.5,2.69217599]
[1758766640336,1.1712,4088.4,4087.5,0.2457]
[1758766640487,1.1712,4088.4,4087.6,6.441]
[1758766640821,3.0,4088.3,4087.6,6.441]
[1758766641020,3.792,4088.4,4087.6,6.441]
[1758766641228,2.44573283,4088.8,4087.6,6.8802]
[1758766641229,0.792,4088.5,4087.6,6.8802]
[1758766641444,3.0,4089.0,4087.7,0.2457]
[1758766641643,0.792,4088.7,4087.7,0.2457]
[1758766641933,0.792,4088.6,4087.7,0.2457]
[1758766642135,0.792,4089.0,4087.7,0.2457]
[1758766642431,2.44578898,4088.7,4087.8,4.8422]
[1758766642598,2.44599981,4088.4,4087.9,4.403]
[1758766642805,0.792,4088.7,4087.9,6.441]
[1758766643133,2.44592243,4088.5,4087.9,6.441]
[1758766643308,3.0,4088.8,4088.0,0.2457]
[1758766643507,3.0,4089.1,4088.1,0.4392]
[1758766643720,2.44556479,4089.1,4088.2,6.443]
[1758766643896,0.792,4089.0,4088.2,6.443]
[1758766644099,2.44575281,4088.8,4088.2,6.443]
[1758766644334,0.792,4088.8,4088.2,6.443]
[1758766644514,3.0,4088.7,4088.2,6.443]
[1758766644714,0.792,4089.3,4088.3,0.6849]
[1758766645055,2.44581625,4088.7,4088.3,0.6849]
[1758766645237,2.44583138,4088.6,4088.3,0.6849]
[1758766645539,3.0,4088.8,4088.3,0.2457]
[1758766645832,2.56760445,4088.3,4088.2,6.443]
[1758766646034,5.44606428,4088.2,4087.2,0.4392]
[1758766646333,3.792,4088.1,4087.3,2.038]
[1758766646531,3.23832595,4087.8,4087.3,3.649]
[1758766646837,3.0,4087.7,4087.3,3.8947]
[1758766647136,2.44653508,4087.5,4087.3,3.649]
[1758766647310,2.44654303,4087.4,4087.3,3.649]
[1758766647512,2.44654303,4087.4,4087.1,0.02]
[1758766647513,5.44666275,4087.2,4087.1,0.02]
[1758766647734,5.44666275,4087.2,4087.1,6.459]
[1758766648034,5.44666275,4087.2,4087.1,6.458]
[1758766648224,6.23866275,4087.2,4087.1,0.02]
[1758766648426,6.23866275,4087.2,4087.1,3.885]
[1758766648936,6.23866275,4087.2,4087.1,0.02]
[1758766649254,2.44726151,4086.2,4086.1,1e-08]
[1758766649439,2.44726151,4086.2,4084.1,0.02]
[1758766649440,2.44804034,4084.9,4084.1,0.02]
[1758766649752,2.44804034,4084.9,4083.1,0.02]
[1758766649753,6.24069974,4083.8,4083.1,0.02]
[1758766649951,4.2849756,4083.8,4083.1,0.02]
[1758766650251,6.73367534,4083.8,4083.7,9.9]
[1758766650450,29.42349988,4083.8,4083.7,1.18939181]
[1758766650622,6.73367534,4083.8,4083.7,1.18939181]
[1758766650952,3.792,4083.8,4083.7,1.18939181]
[1758766651248,4.1712,4083.8,4083.7,1.18939181]
[1758766651449,3.792,4083.8,4083.7,1.18939181]
[1758766651650,2.44780292,4085.3,4083.7,1.87429181]
[1758766651849,0.792,4084.3,4083.8,4.594]
[1758766652039,0.792,4084.3,4083.8,0.2457]
[1758766652236,0.792,4084.3,4083.7,1.18939181]
[1758766652436,22.68982454,4084.4,4083.7,1.18939181]
[1758766652437,0.792,4084.1,4083.7,1.18939181]
[1758766652640,0.792,4084.1,4083.8,6.637]
[1758766652854,22.68982454,4085.4,4083.9,0.70938639]
[1758766653054,22.68982454,4085.8,4084.0,0.6849]
[1758766653229,22.68982454,4085.8,4084.1,2.7239]
[1758766653434,22.68982454,4085.8,4084.2,7.3329]
[1758766653745,22.68982454,4085.8,4084.3,0.6849]
[1758766653932,22.68982454,4085.8,4084.7,2.44811652]
[1758766654128,22.68982454,4085.8,4084.4,0.6849]
[1758766654332,3.0,4085.7,4084.5,5.184]
[1758766654531,0.792,4085.5,4084.6,5.185]
[1758766654729,3.792,4085.3,4084.7,4.605]
[1758766654955,0.792,4084.6,4083.9,0.4392]
[1758766655154,0.792,4084.8,4083.7,1.43509181]
[1758766655456,3.23992049,4085.1,4083.7,5.37939181]
[1758766655668,3.24008239,4084.9,4083.7,5.37939181]
[1758766655851,0.792,4084.7,4083.7,5.37939181]
[1758766656024,0.792,4084.4,4083.7,5.37939181]
[1758766656218,2.80807382,4085.0,4083.7,5.37939181]
[1758766656219,0.792,4084.9,4083.7,5.37939181]
[1758766656442,0.792,4084.2,4083.7,1.18939181]
[1758766656679,2.44860178,4084.0,4083.8,6.663]
[1758766657042,3.24045991,4084.2,4084.1,0.001]
[1758766657257,6.8645059,4084.2,4084.1,0.001]
[1758766658455,3.24069974,4083.8,4083.7,1e-08]
[1758766658656,0.792,4083.4,4082.1,0.02]
[1758766658844,6.24111954,4083.1,4082.1,0.02]
[1758766659478,6.24111954,4083.1,4082.2,1.392]
[1758766659682,6.24111954,4083.1,4082.1,0.02]
[1758766659887,3.24165949,4082.2,4082.1,0.02]
[1758766660127,0.792,4081.2,4080.0,1e-08]
[1758766660273,24.11841983,4080.1,4080.0,1e-08]
[1758766660474,29.82472507,4080.1,4080.0,1e-08]
[1758766660702,30.47389074,4080.1,4080.0,1e-08]
[1758766660907,3.24334088,4079.4,4079.1,0.02]
[1758766661197,0.41925925,4079.4,4079.1,0.00370991]
[1758766661397,0.41925925,4081.0,4079.1,0.00370991]
[1758766661604,17.87549951,4081.3,4079.2,2.7249]
[1758766661807,0.12806532,4081.9,4079.3,1.42786099]
[1758766662011,0.12806532,4081.9,4079.4,0.7274134]
[1758766662174,17.87549951,4081.4,4079.5,0.7029]
[1758766662375,0.12806532,4081.9,4079.6,5.3204122]
[1758766662606,0.12806532,4081.9,4079.8,2.45110054]
[1758766662814,0.14806532,4081.9,4080.1,2.45092032]
[1758766662998,0.14806532,4081.9,4081.7,2.44990091]
[1758766663312,0.14806532,4081.9,4080.2,14.24473307]
[1758766663313,0.14806532,4081.9,4081.8,7.47479955]
[1758766663474,0.02,4082.9,4082.8,2.4492995]
[1758766663681,0.02,4083.9,4083.8,2.44869974]
[1758766663879,0.02,4083.9,4083.8,9.30969974]
[1758766664202,0.02,4083.9,4083.4,0.4582]
[1758766664398,0.02,4083.9,4083.8,2.44869974]
[1758766665013,0.02,4084.9,4084.8,2.44810027]
[1758766665198,0.02,4085.9,4085.0,2.44798041]
[1758766665522,0.02,4087.4,4084.8,6.861]
[1758766665523,0.49260324,4087.7,4086.7,2.44695727]
[1758766665680,5.65483656,4089.8,4086.7,2.44695727]
[1758766665681,0.38372522,4089.3,4087.8,2.44630363]
[1758766665876,0.38372522,4089.3,4087.8,6.47459866]
[1758766666099,0.021,4089.9,4088.7,2.44571572]
[1758766666301,0.021,4089.9,4089.7,2.44515752]
[1758766666503,0.02,4091.9,4090.7,2.44453748]
[1758766666707,0.02,4091.9,4090.8,0.02444509]
[1758766667012,0.02,4091.9,4090.8,2.7429]
[1758766667177,0.02,4091.9,4090.9,0.7029]
[1758766667718,0.02,4091.9,4091.1,2.44431296]
[1758766668017,0.02,4091.9,4090.1,0.2447]
[1758766668180,0.2444,4091.8,4090.2,0.565]
[1758766668386,0.27082236,4091.7,4090.3,0.4582]
[1758766668590,0.2444,4091.6,4089.5,0.4582]
[1758766668791,0.02,4091.9,4089.6,7.53489217]
[1758766668792,2.44391221,4091.8,4089.6,7.53489217]
[1758766669094,2.44429295,4091.2,4089.7,0.7029]
[1758766669289,2.44440431,4091.0,4089.8,0.7029]
[1758766669499,2.44491694,4090.2,4089.9,6.965]
[1758766669694,0.24449169,4090.1,4089.9,6.965]
[1758766670026,2.4452922,4089.5,4089.3,0.12783153]
[1758766670213,5.4452922,4089.5,4089.4,2.862]
[1758766670530,5.4452922,4089.5,4089.3,1e-08]
[1758766670531,3.792,4089.4,4089.3,1e-08]
[1758766670741,3.792,4089.4,4089.1,0.02]
[1758766670742,0.792,4089.2,4089.1,1e-08]
[1758766671028,3.792,4089.2,4089.1,1e-08]
[1758766671199,1.0364,4089.2,4089.1,1e-08]
[1758766672187,0.792,4089.2,4089.1,1e-08]
[1758766672386,0.792,4089.2,4089.1,2.03900001]
[1758766672707,2.4454063,4089.3,4089.1,2.03900001]
[1758766673689,2.44458772,4090.7,4089.2,0.7029]
[1758766673885,2.44474867,4090.4,4089.2,0.7029]
[1758766674188,0.09985918,4089.2,4089.1,1e-08]
[1758766674406,0.09985918,4089.2,4089.1,6.95500001]
[1758766674618,0.04985918,4089.2,4089.1,7.65790001]
[1758766675907,0.04985918,4089.2,4089.1,8.42369001]
[1758766676418,0.04985918,4089.2,4089.1,25.36921592]
[1758766676633,0.04985918,4089.2,4089.1,15.96869001]
[1758766676822,0.04985918,4089.2,4089.1,31.73021592]
[1758766678106,0.04985918,4089.2,4089.1,18.41421592]
[1758766678311,0.04985918,4089.2,4089.1,31.72221592]
[1758766679862,2.44451493,4090.8,4089.1,31.72221592]
[1758766679863,2.44407391,4091.6,4089.1,22.13090001]
[1758766680014,3.0,4091.2,4089.2,0.7029]
[1758766680341,0.792,4091.1,4089.3,2.038]
[1758766680545,0.1216,4089.9,4089.3,2.038]
[1758766680720,0.1216,4090.2,4089.5,2.56683242]
[1758766680927,0.1216,4090.2,4089.6,0.708]
[1758766681257,0.1216,4090.2,4089.1,14.50000001]
[1758766681483,2.44441377,4091.0,4089.1,14.50000001]
[1758766681484,5.44444987,4090.9,4089.7,2.038]
[1758766681616,3.0,4090.9,4089.8,4.894]
[1758766681809,0.32434,4090.8,4089.8,4.894]
[1758766682013,0.2434,4091.3,4089.4,0.2438]
[1758766682244,2.44486227,4090.3,4089.5,4.9]
[1758766682425,2.44468217,4090.6,4089.6,0.02445226]
[1758766682610,3.792,4091.2,4089.5,6.938]
[1758766682812,0.021,4091.9,4089.6,0.73245226]
[1758766683010,0.021,4091.9,4090.4,2.44472945]
[1758766683249,0.021,4091.9,4090.5,30.96068383]
[1758766683560,0.021,4091.9,4090.6,2.038]
[1758766683764,2.44402127,4091.7,4090.5,0.708]
[1758766683963,0.49088833,4091.7,4090.5,0.708]
[1758766684115,0.792,4091.8,4090.6,21.433]
[1758766684312,3.0,4091.7,4090.7,3.277]
[1758766684521,2.44432557,4091.2,4090.7,3.277]
[1758766684726,3.0,4091.7,4090.7,3.277]
[1758766684949,0.021,4091.9,4090.8,4.891]
[1758766685122,0.021,4091.9,4090.8,6.929]
[1758766685323,2.44415239,4091.4,4090.8,6.929]
[1758766685625,2.44439012,4091.0,4090.9,2.038]
[1758766685824,2.68779012,4091.0,4090.9,3.974]
[1758766686154,5.68779012,4091.0,4090.9,3.974]
[1758766687427,5.44439012,4091.0,4090.9,3.974]
[1758766687634,3.0,4091.0,4090.9,3.974]
[1758766687964,0.021,4091.9,4090.9,4.682]
[1758766688261,2.44433037,4091.1,4091.0,14.5244439]
[1758766688448,2.44433037,4091.1,4091.0,6.508]